Workbook

Sheet Sheet1
A1: 附件
A2: 重庆发展投资有限公司及所属子企业招聘 面试人员名单
A3: 序号 | B3: 部门 | C3: 报考岗位 | D3: 姓名 | E3: 身份证号 | F3: 笔试考号
A4: 1 | B4: 党群工作部 | C4: 党建文秘岗 | D4: 张皓 | E4: 4113**********9436 | F4: =VLOOKUP(D4,'[1]公示表（总）'!D:F,3,0) -> 20240718006
A5: 2 | B5: 党群工作部 | C5: 党建文秘岗 | D5: 许诗雪 | E5: 5001**********0323 | F5: =VLOOKUP(D5,'[1]公示表（总）'!D:F,3,0) -> 20240718005
A6: 3 | B6: 党群工作部 | C6: 党建文秘岗 | D6: 经有姣 | E6: 5002**********5629 | F6: =VLOOKUP(D6,'[1]公示表（总）'!D:F,3,0) -> 20240718011
A7: 4 | B7: 党群工作部 | C7: 党建文秘岗 | D7: 张作如 | E7: 1528**********0326 | F7: =VLOOKUP(D7,'[1]公示表（总）'!D:F,3,0) -> 20240718019
A8: 5 | B8: 党群工作部 | C8: 党建文秘岗 | D8: 蒲庆 | E8: 5113**********4284 | F8: =VLOOKUP(D8,'[1]公示表（总）'!D:F,3,0) -> 20240718018
A9: 6 | B9: 党群工作部 | C9: 党建文秘岗 | D9: 贺小辉 | E9: 5002**********6254 | F9: =VLOOKUP(D9,'[1]公示表（总）'!D:F,3,0) -> 20240718022
A10: 7 | B10: 党群工作部 | C10: 宣传工作岗 | D10: 王杨 | E10: 1405**********0051 | F10: =VLOOKUP(D10,'[1]公示表（总）'!D:F,3,0) -> 20240718030
A11: 8 | B11: 党群工作部 | C11: 宣传工作岗 | D11: 刘志欢 | E11: 1426**********1020 | F11: =VLOOKUP(D11,'[1]公示表（总）'!D:F,3,0) -> 20240718027
A12: 9 | B12: 党群工作部 | C12: 宣传工作岗 | D12: 袁飞 | E12: 5137**********3110 | F12: =VLOOKUP(D12,'[1]公示表（总）'!D:F,3,0) -> 20240718023
A13: 10 | B13: 纪委监察专员办 | C13: 综合管理岗（文秘） | D13: 周仁志 | E13: 5113**********5794 | F13: =VLOOKUP(D13,'[1]公示表（总）'!D:F,3,0) -> 20240718053
A14: 11 | B14: 纪委监察专员办 | C14: 综合管理岗（文秘） | D14: 秦艺玮 | E14: 5003**********0026 | F14: =VLOOKUP(D14,'[1]公示表（总）'!D:F,3,0) -> 20240718037
A15: 12 | B15: 纪委监察专员办 | C15: 综合管理岗（文秘） | D15: 韩天一 | E15: 4113**********0034 | F15: =VLOOKUP(D15,'[1]公示表（总）'!D:F,3,0) -> 20240718083
A16: 13 | B16: 纪委监察专员办 | C16: 监督检查审查调查岗 | D16: 蔡程 | E16: 4203**********4913 | F16: =VLOOKUP(D16,'[1]公示表（总）'!D:F,3,0) -> 20240718088
A17: 14 | B17: 纪委监察专员办 | C17: 监督检查审查调查岗 | D17: 喻明悦 | E17: 5001**********1745 | F17: =VLOOKUP(D17,'[1]公示表（总）'!D:F,3,0) -> 20240718090
A18: 15 | B18: 纪委监察专员办 | C18: 监督检查审查调查岗 | D18: 李富森 | E18: 5202**********0179 | F18: =VLOOKUP(D18,'[1]公示表（总）'!D:F,3,0) -> 20240718095
A19: 16 | B19: 纪委监察专员办 | C19: 监督检查审查调查岗 | D19: 杨刚 | E19: 5002**********5577 | F19: =VLOOKUP(D19,'[1]公示表（总）'!D:F,3,0) -> 20240718091
A20: 17 | B20: 纪委监察专员办 | C20: 监督检查审查调查岗 | D20: 姚童钰 | E20: 5001**********0026 | F20: =VLOOKUP(D20,'[1]公示表（总）'!D:F,3,0) -> 20240718098
A21: 18 | B21: 纪委监察专员办 | C21: 监督检查审查调查岗 | D21: 淡荻雅 | E21: 5116**********0525 | F21: =VLOOKUP(D21,'[1]公示表（总）'!D:F,3,0) -> 20240718107
A22: 19 | B22: 重庆安保集团有限责任公司-纪委 | C22: 综合文秘、监督执纪岗 | D22: 陈威 | E22: 5221**********3254 | F22: =VLOOKUP(D22,'[1]公示表（总）'!D:F,3,0) -> 20240718110
A23: 20 | B23: 重庆安保集团有限责任公司-纪委 | C23: 综合文秘、监督执纪岗 | D23: 柘艾雯 | E23: 5002**********4482 | F23: =VLOOKUP(D23,'[1]公示表（总）'!D:F,3,0) -> 20240718111
A24: 21 | B24: 重庆安保集团有限责任公司-纪委 | C24: 综合文秘、监督执纪岗 | D24: 李虹霖 | E24: 5002**********0026 | F24: =VLOOKUP(D24,'[1]公示表（总）'!D:F,3,0) -> 20240718113
A25: 22 | B25: 重庆发展置业管理有限公司-纪委 | C25: 综合文秘、监督执纪岗 | D25: 王萍 | E25: 5002**********0021 | F25: =VLOOKUP(D25,'[1]公示表（总）'!D:F,3,0) -> 20240718115
A26: 23 | B26: 重庆发展置业管理有限公司-纪委 | C26: 综合文秘、监督执纪岗 | D26: 黄育培 | E26: 5003**********0248 | F26: =VLOOKUP(D26,'[1]公示表（总）'!D:F,3,0) -> 20240718114
A27: 24 | B27: 重庆发展置业管理有限公司-纪委 | C27: 综合文秘、监督执纪岗 | D27: 陈婷 | E27: 500230********314904 | F27: 20240718104
